fUSD/lending_fUSD_20240212
["ID","MTS","AMOUNT","RATE_DAILY","PERIOD"]
[313816233,1707735080167,-500.0,0.00023775,2]
[313816234,1707735080177,-1447.65,0.00023775,2]
[313816235,1707735080188,-500.0,0.00023775,2]
[313816236,1707735080198,-500.0,0.00023775,2]
[313816237,1707735080209,-2805.58,0.00023775,2]
[313816238,1707735080219,-1232.65,0.00023775,2]
[313816239,1707735080229,-500.0,0.00023775,2]
[313816240,1707735080239,-500.0,0.00023775,2]
[313816241,1707735080248,-500.0,0.00023775,2]
[313816242,1707735080258,-500.0,0.00023775,2]
[313816243,1707735080268,-500.0,0.00023775,2]
[313816244,1707735080279,-843.89,0.00023775,2]
[313816245,1707735080289,-1190.91,0.00023775,2]
[313816246,1707735080298,-500.0,0.00023775,2]
[313816247,1707735080308,-150.0,0.00023775,2]
[313816248,1707735080317,-9748.41,0.00023775,2]
[313816249,1707735080327,-899.12,0.00023775,2]
[313816250,1707735080337,-2215.09,0.00023775,2]
[313816251,1707735080346,-620.29,0.00023775,2]
[313816252,1707735080356,-500.0,0.00023775,2]
[313816253,1707735080366,-500.0,0.00023775,2]
[313816254,1707735080376,-334.23664968,0.00023775,2]
[313816255,1707735080385,-500.0,0.00023775,2]
[313816256,1707735080395,-500.0,0.00023775,2]
[313816257,1707735080404,-500.0,0.00023775,2]
[313816258,1707735080414,-566.88020332,0.00023775,2]
[313816259,1707735080423,-600.94,0.00023775,2]
[313816260,1707735080433,-879.84,0.00023775,2]
[313816261,1707735080443,-500.0,0.00023775,2]
[313816262,1707735080453,-572.36,0.00023775,2]
[313816263,1707735080465,-500.0,0.00023775,2]
[313816264,1707735080474,-500.0,0.00023775,2]
[313816265,1707735080483,-2783.52,0.00023775,2]
[313816266,1707735080493,-690.15,0.00023775,2]
[313816267,1707735080503,-910.37,0.00023775,2]
[313816268,1707735080512,-960.48,0.00023775,2]
[313816269,1707735080521,-500.0,0.00023775,2]
[313816270,1707735080531,-524.40046183,0.00023775,2]
[313816271,1707735080542,-588.11,0.00023775,2]
[313816272,1707735080551,-767.89,0.00023775,2]
[313816273,1707735080562,-500.0,0.00023775,2]
[313816274,1707735080572,-500.0,0.00023775,2]
[313816275,1707735080581,-788.8,0.00023775,2]
[313816276,1707735080591,-2092.79,0.00023775,2]
[313816277,1707735080600,-921.9,0.00023775,2]
[313816278,1707735080612,-2812.9,0.00023775,2]
[313816279,1707735080621,-500.0,0.00023775,2]
[313816280,1707735080631,-439.16927796,0.00023775,2]
[313816281,1707735080641,-8672.72,0.00023775,2]
[313816282,1707735080651,-500.0,0.00023776,2]
[313816283,1707735080661,-500.0,0.00023776,2]
[313816284,1707735080671,-500.0,0.00023776,2]
[313816285,1707735080680,-500.0,0.00023776,2]
[313816286,1707735080690,-647.88588597,0.00023776,2]
[313816287,1707735080699,-500.0,0.00023776,2]
[313816288,1707735080709,-500.0,0.00023776,2]
[313816289,1707735080718,-500.0,0.00023776,2]
[313816290,1707735080728,-500.0,0.00023776,2]
[313816291,1707735080737,-500.0,0.00023776,2]
[313816292,1707735080746,-500.0,0.00023776,2]
[313816293,1707735080756,-500.0,0.00023776,2]
[313816294,1707735080765,-390.16,0.00023776,2]
[313816295,1707735080774,-500.0,0.00023776,2]
[313816296,1707735080783,-500.0,0.00023776,2]
[313816297,1707735080792,-500.0,0.00023776,2]
[313816298,1707735080802,-500.0,0.00023776,2]
[313816299,1707735080811,-500.0,0.00023776,2]
[313816300,1707735080821,-500.0,0.00023776,2]
[313816301,1707735080831,-500.0,0.00023776,2]
[313816302,1707735080841,-564.35,0.00023776,2]
[313816303,1707735080850,-939.38,0.00023776,2]
[313816304,1707735080860,-500.0,0.00023776,2]
[313816305,1707735080870,-500.0,0.00023776,2]
[313816306,1707735080879,-500.0,0.00023776,2]
[313816307,1707735080889,-500.0,0.00023776,2]
[313816308,1707735080898,-500.0,0.00023776,2]
[313816309,1707735080908,-500.0,0.00023776,2]
[313816310,1707735080918,-468.54323847,0.00023776,2]
[313816311,1707735080927,-500.0,0.00023776,2]
[313816312,1707735080937,-615.97,0.00023776,2]
[313816313,1707735080946,-500.0,0.00023776,2]
[313816314,1707735080956,-500.0,0.00023776,2]
[313816315,1707735080966,-500.0,0.00023776,2]
[313816316,1707735080976,-500.0,0.00023776,2]
[313816317,1707735080985,-500.0,0.00023776,2]
[313816318,1707735080994,-808.34,0.00023776,2]
[313816319,1707735081004,-500.0,0.00023776,2]
[313816320,1707735081013,-500.0,0.00023776,2]
[313816321,1707735081023,-500.0,0.00023776,2]
[313816322,1707735081033,-500.0,0.00023776,2]
[313816323,1707735081042,-500.0,0.00023776,2]
[313816324,1707735081052,-500.0,0.00023776,2]
[313816325,1707735081061,-500.0,0.00023776,2]
[313816326,1707735081071,-500.0,0.00023776,2]
[313816327,1707735081081,-500.0,0.00023776,2]
[313816328,1707735081091,-500.0,0.00023776,2]
[313816329,1707735081101,-500.0,0.00023776,2]
[313816330,1707735081111,-500.0,0.00023776,2]
[313816331,1707735081121,-500.0,0.00023776,2]
[313816332,1707735081131,-500.0,0.00023776,2]
[313816333,1707735081141,-500.0,0.00023776,2]
[313816334,1707735081151,-500.0,0.00023776,2]
[313816335,1707735081162,-500.0,0.00023776,2]
[313816336,1707735081172,-500.0,0.00023776,2]
[313816337,1707735081182,-426.83587298,0.00023776,2]
[313816338,1707735081193,-500.0,0.00023776,2]
[313816339,1707735081206,-528.05237879,0.00023776,2]
[313816340,1707735081414,-500.0,0.00023776,2]
[313816341,1707735081424,-500.0,0.00023776,2]
[313816342,1707735081434,-154.82150377,0.00023776,2]
[313816343,1707735081448,-500.0,0.00023776,2]
[313816344,1707735081460,-607.38146787,0.00023776,2]
[313816345,1707735081470,-500.0,0.00023776,2]
[313816346,1707735081480,-500.0,0.00023776,2]
[313816347,1707735081490,-500.0,0.00023776,2]
[313816348,1707735081500,-500.0,0.00023776,2]
[313816349,1707735081509,-500.0,0.00023776,2]
[313816350,1707735081518,-500.0,0.00023776,2]
[313816351,1707735081528,-509.14,0.00023776,2]
[313816352,1707735081538,-205.60200443,0.00023776,2]
[313816353,1707735081550,-500.0,0.00023776,2]
[313816354,1707735081560,-500.0,0.00023776,2]
[313816355,1707735081572,-500.0,0.00023776,2]
[313816356,1707735081582,-600.01654395,0.00023776,2]
[313816357,1707735081591,-783.3,0.00023776,2]
[313816358,1707735081600,-500.0,0.00023776,2]
[313816359,1707735081610,-707.32,0.00023776,2]
[313816360,1707735081619,-500.0,0.00023776,2]
[313816361,1707735081629,-500.0,0.00023776,2]
[313816362,1707735081638,-500.0,0.00023776,2]
[313816363,1707735081648,-209.70333742,0.00023776,2]
[313816364,1707735081658,-500.0,0.00023776,2]
[313816365,1707735081667,-500.0,0.00023776,2]
[313816366,1707735081677,-618.89,0.00023776,2]
[313816367,1707735081686,-500.0,0.00023776,2]
[313816368,1707735081695,-176.75351854,0.00023776,2]
[313816369,1707735081704,-500.0,0.00023776,2]
[313816370,1707735081713,-500.0,0.00023776,2]
[313816371,1707735081722,-500.0,0.00023776,2]
[313816372,1707735081731,-500.0,0.00023776,2]
[313816373,1707735081740,-2711.38,0.00023776,2]
[313816374,1707735081750,-500.0,0.00023776,2]
[313816375,1707735081759,-418.3759593,0.00023776,2]
[313816376,1707735081768,-163.72063698,0.00023776,2]
[313816377,1707735081777,-1469.44,0.00023776,2]
[313816378,1707735081787,-681.86,0.00023776,2]
[313816379,1707735081796,-500.0,0.00023776,2]
[313816380,1707735081805,-537.01,0.00023776,2]
[313816381,1707735081814,-2252.02,0.00023776,2]
[313816382,1707735081823,-688.56,0.00023776,2]
[313816383,1707735081832,-646.65280048,0.00023776,2]
[313816384,1707735081841,-500.0,0.00023776,2]
[313816385,1707735081851,-500.0,0.00023776,2]
[313816386,1707735081860,-500.0,0.00023776,2]
[313816387,1707735081869,-503.07811453,0.00023776,2]
[313816388,1707735081879,-150.16552109,0.00023776,2]
[313816389,1707735081888,-155.92758043,0.00023776,2]
[313816390,1707735081898,-500.0,0.00023776,2]
[313816391,1707735081907,-500.0,0.00023776,2]
[313816392,1707735081916,-500.0,0.00023776,2]
[313816393,1707735081925,-500.0,0.00023776,2]
[313816394,1707735081934,-500.0,0.00023776,2]
[313816395,1707735081943,-500.0,0.00023776,2]
[313816396,1707735081952,-500.0,0.00023776,2]
[313816397,1707735081961,-500.0,0.00023776,2]
[313816398,1707735081970,-1838.36,0.00023776,2]
[313816399,1707735081979,-500.0,0.00023776,2]
[313816400,1707735081988,-500.0,0.00023776,2]
[313816401,1707735081998,-500.0,0.00023776,2]
[313816402,1707735082007,-500.0,0.00023776,2]
[313816403,1707735082017,-500.0,0.00023776,2]
[313816404,1707735082030,-500.0,0.00023776,2]
[313816405,1707735082040,-500.0,0.00023776,2]
[313816406,1707735082050,-500.0,0.00023776,2]
[313816407,1707735082059,-500.0,0.00023776,2]
[313816408,1707735082068,-500.0,0.00023776,2]
[313816409,1707735082078,-228.27236465,0.00023776,2]
[313816410,1707735082088,-500.0,0.00023776,2]
[313816411,1707735082097,-519.44531669,0.00023776,2]
[313816412,1707735082107,-500.0,0.00023776,2]
[313816413,1707735082117,-653.74,0.00023776,2]
[313816414,1707735082126,-500.0,0.00023776,2]
[313816415,1707735082136,-500.0,0.00023776,2]
[313816416,1707735082145,-500.0,0.00023776,2]
[313816417,1707735082154,-4603.61,0.00023776,2]
[313816418,1707735082163,-500.0,0.00023776,2]
[313816419,1707735082173,-500.0,0.00023776,2]
[313816420,1707735082183,-939.6,0.00023776,2]
[313816421,1707735082192,-500.0,0.00023776,2]
[313816422,1707735082201,-500.0,0.00023776,2]
[313816423,1707735082212,-911.93,0.00023776,2]
[313816424,1707735082221,-500.0,0.00023776,2]
[313816425,1707735082231,-500.0,0.00023776,2]
[313816426,1707735082240,-1543.06,0.00023776,2]
[313816427,1707735082249,-793.68,0.00023776,2]
[313816428,1707735082258,-659.79,0.00023776,2]
[313816429,1707735082267,-500.0,0.00023776,2]
[313816430,1707735082276,-500.0,0.00023776,2]
[313816431,1707735082285,-2800.78,0.00023776,2]
[313816432,1707735082294,-500.0,0.00023776,2]
[313816433,1707735082303,-500.0,0.00023776,2]
[313816434,1707735082312,-500.0,0.00023776,2]
[313816435,1707735082322,-703.75,0.00023776,2]
[313816436,1707735082331,-607.76,0.00023776,2]
[313816437,1707735082340,-500.0,0.00023776,2]
[313816438,1707735082349,-500.0,0.00023776,2]
[313816439,1707735082359,-531.981517,0.00023776,2]
[313816440,1707735082368,-500.0,0.00023776,2]
[313816441,1707735082378,-612.44,0.00023776,2]
[313816442,1707735082386,-540.31,0.00023776,2]
[313816443,1707735082396,-500.0,0.00023776,2]
[313816444,1707735082405,-597.88,0.00023776,2]
[313816445,1707735082414,-500.0,0.00023776,2]
[313816446,1707735082423,-500.0,0.00023776,2]
[313816447,1707735082432,-703.76,0.00023776,2]
[313816448,1707735082442,-500.0,0.00023776,2]
[313816449,1707735082451,-500.0,0.00023776,2]
[313816450,1707735082463,-605.58,0.00023776,2]
[313816451,1707735082472,-500.0,0.00023776,2]
[313816452,1707735082482,-990.95,0.00023776,2]
[313816453,1707735082491,-556.38,0.00023776,2]
[313816454,1707735082500,-713.73,0.00023776,2]
[313816455,1707735082510,-500.0,0.00023776,2]
[313816456,1707735082519,-500.0,0.00023776,2]
[313816457,1707735082528,-500.0,0.00023776,2]
[313816458,1707735082539,-762.09,0.00023776,2]
[313816459,1707735082554,-500.0,0.00023776,2]
[313816460,1707735082574,-1678.01,0.00023776,2]
[313816461,1707735082591,-731.06,0.00023776,2]
[313816462,1707735082610,-612.73,0.00023776,2]
[313816463,1707735082628,-2458.08,0.00023776,2]
[313816464,1707735082644,-556.12249447,0.00023776,2]
[313816465,1707735082660,-500.0,0.00023776,2]
[313816466,1707735082677,-500.0,0.00023776,2]
[313816467,1707735082696,-500.0,0.00023776,2]
[313816468,1707735082714,-500.0,0.00023777,2]
[313816469,1707735082731,-500.0,0.00023777,2]
[313816470,1707735082750,-500.0,0.00023777,2]
[313816471,1707735082767,-500.0,0.00023777,2]
[313816472,1707735082778,-500.0,0.00023777,2]
[313816473,1707735082794,-500.0,0.00023777,2]
[313816474,1707735082811,-240.43200958,0.00023777,2]
[313816475,1707735082827,-615.12533403,0.00023777,2]
[313816476,1707735082841,-377.29969531,0.00023777,2]
[313816477,1707735082856,-500.0,0.00023777,2]
[313816478,1707735082870,-500.0,0.00023777,2]
[313816479,1707735082885,-3100.0,0.000239,8]
[313816480,1707735082900,-1300.0,0.000239,8]
[313816481,1707735082915,-864.35236612,0.0002391,2]
[313816482,1707735082930,-1210.4173213,0.00023949,2]
[313816483,1707735082943,-448.13033706,0.00024,2]
[313816484,1707735082959,-202.13886159,0.00024,2]
[313816485,1707735082973,-3999.63554633,0.00024,2]
[313816486,1707735082990,-6304.42376575,0.0002403,2]
[313816487,1707735083004,-500.0,0.00024048,2]
[313816488,1707735083019,-500.0,0.00024048,2]
[313816489,1707735083033,-579.33,0.00024048,2]
[313816490,1707735083047,-2304.48,0.00024048,2]
[313816491,1707735083066,-500.0,0.00024048,2]
[313816492,1707735083081,-6366.64,0.00024048,2]
[313816493,1707735083095,-2086.18,0.00024048,2]
[313816494,1707735083110,-862.58,0.00024048,2]
[313816495,1707735083124,-1948.16,0.00024048,2]
[313816496,1707735083139,-673.35,0.00024048,2]
[313816497,1707735083154,-500.0,0.00024048,2]
[313816498,1707735083168,-500.0,0.00024048,2]
[313816499,1707735083183,-526.84,0.00024048,2]
[313816500,1707735083198,-1740.03,0.00024048,2]
[313816501,1707735083214,-500.0,0.00024048,2]
[313816502,1707735083229,-973.64,0.00024048,2]
[313816503,1707735083243,-6745.22,0.00024048,2]
[313816504,1707735083257,-509.25,0.00024048,2]
[313816505,1707735083271,-500.0,0.00024048,2]
[313816506,1707735083285,-500.0,0.00024048,2]
[313816507,1707735083300,-500.0,0.00024048,2]
[313816508,1707735083314,-505.12,0.00024048,2]
[313816509,1707735083330,-500.0,0.00024048,2]
[313816510,1707735083344,-1092.67,0.00024048,2]
[313816511,1707735083359,-2684.85,0.00024048,2]
[313816512,1707735083373,-500.0,0.00024048,2]
[313816513,1707735083392,-529.57,0.00024048,2]
[313816514,1707735083408,-500.0,0.00024048,2]
[313816515,1707735083423,-602.36,0.00024048,2]
[313816516,1707735083439,-864.29,0.00024048,2]
[313816517,1707735083457,-500.0,0.00024048,2]
[313816518,1707735083473,-500.0,0.00024048,2]
[313816519,1707735083488,-500.0,0.00024048,2]
[313816520,1707735083502,-2142.06,0.00024048,2]
[313816521,1707735083517,-500.0,0.00024048,2]
[313816522,1707735083532,-500.0,0.00024049,2]
[313816523,1707735083547,-500.0,0.00024049,2]
[313816524,1707735083565,-500.0,0.00024049,2]
[313816525,1707735083580,-500.0,0.00024049,2]
[313816526,1707735083594,-500.0,0.00024049,2]
[313816527,1707735083608,-500.0,0.00024049,2]
[313816528,1707735083623,-548.4,0.00024049,2]
[313816529,1707735083636,-500.0,0.00024049,2]
[313816530,1707735083650,-500.0,0.00024049,2]
[313816531,1707735083664,-243.51136897,0.00024049,2]
[313816532,1707735083679,-500.0,0.00024049,2]
[313816533,1707735083693,-500.0,0.00024049,2]
[313816534,1707735083707,-500.0,0.00024049,2]
[313816535,1707735083722,-500.0,0.00024049,2]
[313816536,1707735083737,-677.22,0.00024049,2]
[313816537,1707735083750,-544.02,0.00024049,2]
[313816538,1707735083764,-500.0,0.00024049,2]
[313816539,1707735083779,-500.0,0.00024049,2]
[313816540,1707735083794,-500.0,0.00024049,2]
[313816541,1707735083807,-500.0,0.00024049,2]
[313816542,1707735083822,-559.07,0.00024049,2]
[313816543,1707735083836,-500.0,0.00024049,7]
[313816544,1707735083851,-543.92,0.00024049,2]
[313816545,1707735083865,-570.54,0.00024049,2]
[313816546,1707735083880,-536.03,0.00024049,2]
[313816547,1707735083895,-500.0,0.00024049,2]
[313816548,1707735083910,-500.0,0.00024049,2]
[313816549,1707735083924,-533.07,0.00024049,2]
[313816550,1707735083938,-574.77,0.00024049,2]
[313816551,1707735083953,-500.0,0.00024049,2]
[313816552,1707735083967,-500.0,0.00024049,2]
[313816553,1707735083982,-871.23,0.00024049,2]
[313816554,1707735083996,-500.0,0.00024049,2]
[313816555,1707735084010,-500.0,0.00024049,2]
[313816556,1707735084024,-643.11,0.00024049,2]
[313816557,1707735084038,-952.45,0.00024049,2]
[313816558,1707735084052,-500.0,0.00024049,2]
[313816559,1707735084067,-500.0,0.00024049,2]
[313816560,1707735084081,-706.8,0.00024049,2]
[313816561,1707735084095,-972.12,0.00024049,2]
[313816562,1707735084110,-740.12,0.00024049,2]
[313816563,1707735084124,-768.67,0.00024049,2]
[313816564,1707735084138,-507.83,0.00024049,2]
[313816565,1707735084153,-653.17,0.00024049,2]
[313816566,1707735084169,-882.98,0.00024049,2]
[313816567,1707735084183,-500.0,0.00024049,2]
[313816568,1707735084198,-515.82,0.00024049,2]
[313816569,1707735084214,-500.0,0.00024049,2]
[313816570,1707735084228,-500.0,0.00024049,2]
[313816571,1707735084242,-500.0,0.00024049,2]
[313816572,1707735084257,-500.0,0.00024049,2]
[313816573,1707735084269,-500.0,0.00024049,2]
[313816574,1707735084278,-150.0,0.00024049,2]
[313816575,1707735084288,-500.0,0.00024049,2]
[313816576,1707735084563,-500.0,0.00024049,2]
[313816577,1707735084592,-557.62152022,0.00024049,2]
[313816578,1707735084602,-468.00537208,0.00024049,2]
[313816579,1707735084611,-602.62613799,0.00024049,2]
[313816580,1707735084620,-500.0,0.00024049,2]
[313816581,1707735084629,-4432.79,0.00024049,2]
[313816582,1707735084638,-500.0,0.00024049,2]
[313816583,1707735084647,-500.0,0.00024049,2]
[313816584,1707735084657,-500.0,0.00024049,2]
[313816585,1707735084666,-2834.27,0.00024049,2]
[313816586,1707735084675,-500.0,0.00024049,2]
[313816587,1707735084685,-1272.24,0.00024049,2]
[313816588,1707735084695,-500.0,0.00024049,2]
[313816589,1707735084706,-500.0,0.00024049,2]
[313816590,1707735084715,-519.45,0.00024049,2]
[313816591,1707735084725,-500.0,0.00024049,2]
[313816592,1707735084735,-500.0,0.00024049,2]
[313816593,1707735084745,-500.0,0.00024049,2]
[313816594,1707735084755,-500.0,0.00024049,2]
[313816595,1707735084765,-500.0,0.00024049,2]
[313816596,1707735084775,-5024.21,0.00024049,2]
[313816597,1707735084785,-500.0,0.00024049,2]
[313816598,1707735084794,-500.0,0.00024049,2]
[313816599,1707735084804,-4933.54,0.00024049,2]
[313816600,1707735084813,-500.0,0.00024049,2]
[313816601,1707735084823,-555.59,0.00024049,2]
[313816602,1707735084832,-2897.97,0.00024049,2]
[313816603,1707735084841,-6201.98,0.00024049,2]
[313816604,1707735084852,-500.0,0.00024049,2]
[313816605,1707735084861,-2371.51,0.00024049,2]
[313816606,1707735084871,-500.0,0.00024049,2]
[313816607,1707735084880,-500.0,0.00024049,2]
[313816608,1707735084889,-500.0,0.00024049,2]
[313816609,1707735084899,-3045.48,0.00024049,2]
[313816610,1707735084908,-500.0,0.00024049,2]
[313816611,1707735084917,-1547.39,0.00024049,2]
[313816612,1707735084926,-846.31,0.00024049,2]
[313816613,1707735084936,-4097.96,0.00024049,2]
[313816614,1707735084945,-179.40373184,0.00024049,2]
[313816615,1707735084954,-500.0,0.00024049,2]
[313816616,1707735084964,-8400.87,0.00024049,2]
[313816617,1707735084973,-500.0,0.00024049,2]
[313816618,1707735084983,-973.53,0.00024049,2]
[313816619,1707735084992,-504.62,0.00024049,2]
[313816620,1707735085001,-500.0,0.00024049,2]
[313816621,1707735085011,-2007.99,0.00024049,2]
[313816622,1707735085020,-1445.04,0.00024049,2]
[313816623,1707735085029,-2108.56,0.00024049,2]
[313816624,1707735085038,-500.0,0.00024049,2]
[313816625,1707735085047,-778.83,0.00024049,2]
[313816626,1707735085056,-500.0,0.00024049,2]
[313816627,1707735085068,-500.0,0.00024049,2]
[313816628,1707735085078,-500.0,0.00024049,2]
[313816629,1707735085087,-751.46,0.00024049,2]
[313816630,1707735085096,-500.0,0.00024049,2]
[313816631,1707735085106,-678.75,0.00024049,2]
[313816632,1707735085115,-500.0,0.00024049,2]
[313816633,1707735085124,-698.3,0.00024049,2]
[313816634,1707735085134,-500.0,0.00024049,2]
[313816635,1707735085143,-552.16,0.00024049,2]
[313816636,1707735085155,-500.0,0.00024049,2]
[313816637,1707735085164,-500.0,0.00024049,2]
[313816638,1707735085174,-500.0,0.00024049,2]
[313816639,1707735085183,-2405.45,0.00024049,2]
[313816640,1707735085193,-500.0,0.00024049,2]
[313816641,1707735085204,-500.0,0.00024049,2]
[313816642,1707735085214,-1680.13,0.00024049,2]
[313816643,1707735085223,-2942.77,0.00024049,2]
[313816644,1707735085233,-4101.5,0.00024049,2]
[313816645,1707735085242,-500.0,0.00024049,2]
[313816646,1707735085252,-500.0,0.00024049,2]
[313816647,1707735085262,-20031.68,0.00024049,2]
[313816648,1707735085271,-500.0,0.00024049,2]
[313816649,1707735085280,-5982.13,0.00024049,2]
[313816650,1707735085290,-2670.94,0.00024049,2]
[313816651,1707735085300,-500.0,0.00024049,2]
[313816652,1707735085310,-500.0,0.00024049,2]
[313816653,1707735085319,-500.0,0.00024049,2]
[313816654,1707735085330,-2470.01,0.00024049,2]
[313816655,1707735085339,-500.0,0.00024049,2]
[313816656,1707735085348,-500.0,0.00024049,2]
[313816657,1707735085358,-1147.39,0.00024049,2]
[313816658,1707735085368,-500.0,0.00024049,2]
[313816659,1707735085377,-512.26,0.00024049,2]
[313816660,1707735085386,-500.0,0.00024049,2]
[313816661,1707735085395,-689.37,0.00024049,2]
[313816662,1707735085405,-528.76,0.00024049,2]
[313816663,1707735085414,-710.54,0.00024049,2]
[313816664,1707735085423,-500.0,0.00024049,2]
[313816665,1707735085432,-500.0,0.00024049,2]
[313816666,1707735085442,-7132.65,0.00024049,2]
[313816667,1707735085454,-500.0,0.00024049,2]
[313816668,1707735085464,-1207.55,0.00024049,2]
[313816669,1707735085474,-1690.53,0.00024049,2]
[313816670,1707735085483,-500.0,0.00024049,2]
[313816671,1707735085493,-282.75724748,0.00024049,2]
[313816672,1707735085502,-500.0,0.00024049,2]
[313816673,1707735085511,-767.62,0.00024049,2]
[313816674,1707735085521,-507.32684699,0.00024049,2]
[313816675,1707735085531,-768.44,0.00024049,2]
[313816676,1707735085541,-2328.9,0.00024049,2]
[313816677,1707735085550,-6830.87,0.00024049,2]
[313816678,1707735085559,-581.45,0.00024049,2]
[313816679,1707735085568,-500.0,0.00024049,2]
[313816680,1707735085578,-550.33,0.00024049,2]
[313816681,1707735085587,-500.0,0.00024049,2]
[313816682,1707735085597,-2234.17,0.00024049,2]
[313816683,1707735085607,-1353.61,0.00024049,2]
[313816684,1707735085616,-589.69,0.00024049,2]
[313816685,1707735085625,-500.0,0.00024049,2]
[313816686,1707735085635,-500.0,0.00024049,2]
[313816687,1707735085644,-1145.24,0.00024049,2]
[313816688,1707735085653,-996.07,0.00024049,2]
[313816689,1707735085662,-1751.56,0.00024049,2]
[313816690,1707735085671,-727.06,0.00024049,2]
[313816691,1707735085680,-500.0,0.00024049,2]
[313816692,1707735085690,-1151.45,0.00024049,2]
[313816693,1707735085699,-500.0,0.00024049,2]
[313816694,1707735085709,-500.0,0.00024049,2]
[313816695,1707735085719,-1447.65,0.00024049,2]
[313816696,1707735085728,-500.0,0.00024049,2]
[313816697,1707735085737,-2805.58,0.00024049,2]
[313816698,1707735085747,-1232.65,0.00024049,2]
[313816699,1707735085756,-500.0,0.00024049,2]
[313816700,1707735085766,-500.0,0.00024049,2]
[313816701,1707735085775,-500.0,0.00024049,2]
[313816702,1707735085784,-500.0,0.00024049,2]
[313816703,1707735085793,-500.0,0.00024049,2]
[313816704,1707735085802,-843.89,0.00024049,2]
[313816705,1707735085812,-1190.91,0.00024049,2]
[313816706,1707735085821,-500.0,0.00024049,2]
[313816707,1707735085830,-222.44595993,0.00024049,2]
[313816708,1707735085839,-9748.41,0.00024049,2]
[313816709,1707735085848,-899.12,0.00024049,2]
[313816710,1707735085858,-2215.09,0.00024049,2]
[313816711,1707735085867,-620.29,0.00024049,2]
[313816712,1707735085876,-500.0,0.00024049,2]
[313816713,1707735085886,-500.0,0.00024049,2]
[313816714,1707735085895,-500.0,0.00024049,2]
[313816715,1707735085904,-500.0,0.00024049,2]
[313816716,1707735085913,-500.0,0.00024049,2]
[313816717,1707735085922,-600.94,0.00024049,2]
[313816718,1707735085932,-500.0,0.00024049,2]
[313816719,1707735085941,-879.84,0.00024049,2]
[313816720,1707735085950,-572.36,0.00024049,2]
[313816721,1707735085960,-500.0,0.00024049,2]
[313816722,1707735085970,-500.0,0.00024049,2]
[313816723,1707735085980,-2783.52,0.00024049,2]
[313816724,1707735085989,-690.15,0.00024049,2]
[313816725,1707735085999,-910.37,0.00024049,2]
[313816726,1707735086010,-960.48,0.00024049,2]
[313816727,1707735086020,-588.11,0.00024049,2]
[313816728,1707735086029,-767.89,0.00024049,2]
[313816729,1707735086038,-500.0,0.00024049,2]
[313816730,1707735086047,-500.0,0.00024049,2]
[313816731,1707735086056,-788.8,0.00024049,2]
[313816732,1707735086066,-2092.79,0.00024049,2]